bitfinex-derivatives/quotes_SOLF0:USTF0_20250817
["timestamp","ask_amount","ask_price","bid_price","bid_amount"]
[1755446831307,8.38717028,195.26,195.21,2.78]
[1755446831505,4.72449445,195.25,195.21,2.78]
[1755446831705,4.72449445,195.24,195.21,2.78]
[1755446832009,0.05,195.28,195.21,2.78]
[1755446832207,8.39005921,195.27,195.21,2.78]
[1755446832413,8.39005921,195.26,195.21,2.78]
[1755446832605,8.39005921,195.25,195.21,2.78]
[1755446832801,4.72613717,195.24,195.21,2.78]
[1755446833012,4.72613717,195.23,195.21,2.78]
[1755446833213,0.05,195.27,195.21,2.78]
[1755446833514,8.44496358,195.26,195.21,2.78]
[1755446833709,8.39496358,195.25,195.21,2.78]
[1755446834013,4.72823771,195.24,195.21,2.78]
[1755446834211,4.72823771,195.23,195.21,2.78]
[1755446834413,4.72823771,195.26,195.21,2.78]
[1755446834612,8.39599128,195.25,195.21,2.78]
[1755446834811,8.39599128,195.24,195.21,2.78]
[1755446835012,0.05,195.27,195.21,2.78]
[1755446835013,4.72823771,195.23,195.21,2.78]
[1755446835211,4.72823771,195.22,195.21,2.78]
[1755446835412,4.77823771,195.26,195.21,2.78]
[1755446835612,8.3968011,195.25,195.21,2.78]
[1755446835815,8.3968011,195.24,195.21,2.78]
[1755446836111,4.72823771,195.23,195.21,2.78]
[1755446836312,4.72823771,195.22,195.21,2.78]
[1755446837210,4.72823771,195.25,195.21,2.78]
[1755446837403,8.39804698,195.24,195.21,2.78]
[1755446837711,4.72823771,195.23,195.21,2.78]
[1755446837911,4.72823771,195.22,195.21,2.78]
[1755446838113,4.72823771,195.25,195.21,2.78]
[1755446838320,8.39830469,195.24,195.21,2.78]
[1755446838613,4.72823771,195.23,195.21,2.78]
[1755446838810,4.72823771,195.22,195.21,2.78]
[1755446840505,4.73613086,195.22,195.21,2.78]
[1755446840708,9.47209339,195.22,195.21,2.78]
[1755446841914,0.04,195.21,195.16,2.93]
[1755446842111,0.04,195.19,195.17,2.93]
[1755446842419,4.73596253,195.18,195.15,2.57214949]
[1755446842610,4.73596253,195.17,195.14,78.97719682]
[1755446842810,4.73560652,195.16,195.15,2.93]
[1755446846921,4.77560652,195.16,195.14,81.90719682]
[1755446847221,4.73560652,195.15,195.14,81.90719682]
[1755446847422,0.04,195.18,195.14,78.97719682]
[1755446847621,4.72674355,195.17,195.16,2.93]
[1755446847914,0.04,195.16,195.09,2.93]
[1755446848116,8.39530563,195.15,195.09,2.93]
[1755446848320,4.72674355,195.14,195.09,2.93]
[1755446848518,4.76674355,195.14,195.09,2.93]
[1755446848720,4.72674355,195.13,195.09,2.93]
[1755446848912,0.04,195.14,195.09,2.93]
[1755446849115,4.72462917,195.13,195.09,2.93]
[1755446849315,0.04,195.14,195.09,2.93]
[1755446849615,4.72251947,195.13,195.09,2.93]
[1755446849815,0.04,195.14,195.09,2.93]
[1755446850120,4.72251947,195.13,195.07,5.50214949]
[1755446850318,2.57214949,195.19,195.08,2.93]
[1755446850517,0.04,195.1,195.08,2.93]
[1755446851830,0.04,195.15,195.07,2.93]
[1755446852033,0.04,195.13,195.07,2.93]
[1755446852327,0.04,195.11,195.07,2.93]
[1755446852527,0.04,195.09,195.04,2.93]
[1755446853123,2.57214949,195.13,194.93,127.26]
[1755446853317,0.04,195.11,195.06,23.32]
[1755446853525,0.04,195.09,195.06,23.32]
[1755446853727,0.04,195.12,195.06,20.39]
[1755446853926,0.04,195.1,195.06,23.32]
[1755446854128,4.71273776,195.09,195.06,23.32]
[1755446854325,4.75023029,195.08,195.07,0.03228749]
[1755446859126,0.04,195.08,195.07,0.03228749]
[1755446859430,4.74144666,195.08,195.07,0.03228749]
[1755446859931,4.74144666,195.08,195.06,20.39]
[1755446859932,8.87514302,195.08,195.06,20.39]
[1755446860124,8.35531914,195.07,195.06,20.39]
[1755446861526,8.87531914,195.07,195.06,20.39]
[1755446861725,11.44746863,195.07,195.06,20.39]
[1755446862328,26.81746863,195.07,194.76,8.39862131]
[1755446862533,2.57214949,195.02,194.92,2.93]
[1755446862736,8.35531914,195.01,194.92,2.93]
[1755446862928,4.70643826,195.0,194.92,2.93]
[1755446863129,4.74175784,194.99,194.92,2.93]
[1755446863333,4.70643826,194.98,194.92,2.93]
[1755446863631,4.70643826,194.97,194.92,2.93]
[1755446863834,0.03531958,194.99,194.92,2.93]
[1755446867040,0.03531958,194.99,194.95,2.93]
[1755446867440,2.82,195.03,194.95,2.93]
[1755446867739,0.03380182,194.99,194.95,2.93]
[1755446871840,2.81380182,194.99,194.95,2.98]
[1755446873248,2.78,194.98,194.95,2.98]
[1755446873745,2.78,194.98,194.92,2.98]
[1755446875051,0.03380182,194.99,194.92,2.98]
[1755446875853,4.63029858,194.98,194.92,2.98]
[1755446876049,0.03380182,194.99,194.92,2.98]
[1755446876249,4.63029907,194.98,194.95,2.98]
[1755446876450,0.03380182,194.99,194.98,2.98]
[1755446876650,2.78,195.07,194.98,2.98]
[1755446876855,4.63026544,195.06,194.98,2.98]
[1755446877157,4.63026544,195.05,194.98,2.98]
[1755446877357,4.63133473,195.04,194.98,2.98]
[1755446877656,4.63133473,195.03,194.98,2.98]
[1755446877956,2.78,195.07,195.0,2.98]
[1755446877957,4.63133473,195.02,195.0,2.98]
[1755446878145,2.78,195.06,195.0,2.98]
[1755446878346,7.41183182,195.05,195.0,2.98]
[1755446878550,4.63183182,195.04,195.0,2.98]
[1755446878850,4.63183182,195.03,195.0,2.98]
[1755446879052,4.63183182,195.02,195.0,2.98]
[1755446879357,2.78,195.07,195.0,2.98]
[1755446879558,4.63521743,195.06,195.0,2.98]
[1755446879748,4.63521743,195.05,195.02,0.03536732]
[1755446879948,4.63521743,195.04,195.03,2.98]
[1755446881964,2.78,195.13,195.03,5.55214949]
[1755446882260,4.63849593,195.12,195.04,2.98]
[1755446882462,4.63849593,195.11,195.07,2.98]
[1755446882666,4.63849593,195.1,195.07,2.98]
[1755446882858,4.63849593,195.09,195.07,2.98]
[1755446883059,4.6405025,195.08,195.07,2.98]
[1755446883963,4.6405025,195.08,195.06,0.03496291]
[1755446884167,4.6438708,195.07,195.06,0.03496291]
[1755446884360,7.4238708,195.07,195.06,0.03496291]
[1755446885563,7.42722228,195.07,195.06,0.03496291]
[1755446886065,7.43054686,195.07,195.06,0.03496291]
[1755446886264,2.78,195.07,195.06,0.03496291]
[1755446886466,7.43054616,195.07,195.06,0.03496291]
[1755446886763,11.09373861,195.07,195.06,0.03496291]
[1755446886966,13.6658881,195.07,195.06,0.03496291]
[1755446887166,2.78,195.06,194.98,2.98]
[1755446887466,2.78,195.04,194.98,2.98]
[1755446887663,8.31373861,195.03,194.99,2.98]
[1755446887866,2.78,195.01,194.99,2.98]
[1755446888067,4.65054616,195.0,194.96,87.63169689]
[1755446888267,4.65054616,194.99,194.96,87.63169689]
[1755446888467,4.65054616,194.98,194.96,87.63169689]
[1755446888768,2.78,195.01,194.97,2.98]
[1755446888969,4.66004573,195.0,194.97,2.98]
[1755446889157,4.66004573,194.99,194.97,2.98]
[1755446889363,4.66004573,194.98,194.97,2.98]
[1755446890867,2.78,195.06,194.97,2.98]
[1755446891068,8.30318856,195.05,194.97,2.98]
[1755446891271,8.30318856,195.04,194.97,2.98]
[1755446891472,8.30318856,195.03,194.97,2.98]
[1755446891776,8.30572846,195.02,194.97,2.98]
[1755446891971,4.63184703,195.01,194.97,2.98]
[1755446892166,4.63184703,195.0,194.97,2.98]
[1755446892371,4.63184703,194.99,194.97,2.98]
[1755446892571,4.63184703,194.98,194.97,2.98]
[1755446892972,1.60184703,194.98,194.97,2.98]
[1755446894877,2.78,195.0,194.97,2.98]
[1755446895370,2.78,195.06,194.97,2.98]
[1755446895672,2.78,195.04,194.97,2.98]
[1755446895867,2.78,195.02,194.97,2.98]
[1755446896064,6.46062558,195.01,194.97,2.98]
[1755446896265,2.78,195.01,194.97,2.98]
[1755446898173,3.02,195.0,194.97,2.98]
[1755446898480,2.57214949,195.07,194.97,2.98]
[1755446898680,3.02,195.0,194.97,2.98]
[1755446898973,7.63304716,195.06,194.96,87.63169689]
[1755446898974,3.02,195.06,194.96,87.63169689]
[1755446899170,4.96514641,195.05,194.97,2.83]
[1755446899369,6.70344475,195.04,194.97,2.83]
[1755446899568,3.02,195.02,194.97,2.83]
[1755446899770,3.68344475,195.01,194.98,2.83]
[1755446899977,3.02,195.06,194.98,2.83]
[1755446900172,7.63439571,195.05,194.98,2.83]
[1755446900373,3.02,195.03,194.98,2.83]
[1755446900571,3.02,195.01,194.98,2.83]
[1755446902177,3.02,195.06,194.93,2.83]
[1755446902377,5.59214949,195.04,194.93,2.83]
[1755446902581,3.02,195.02,194.93,2.83]
[1755446902881,3.02,195.0,194.93,2.83]
[1755446903072,3.02,194.98,194.93,2.83]
[1755446903272,3.02,194.98,194.9,2.83]
[1755446903875,3.68599905,194.97,194.9,2.83]
[1755446904079,6.70617704,194.96,194.9,2.83]
[1755446904284,5.73105496,195.03,194.9,2.83]
[1755446904476,3.02,194.94,194.9,2.83]
[1755446905079,3.02,195.0,194.9,2.83]
[1755446905278,3.02,194.98,194.9,2.83]
[1755446905578,3.02,194.96,194.9,2.83]
[1755446905781,3.02,194.96,194.87,2.57214949]
[1755446905782,3.02,194.94,194.88,2.83]
[1755446905982,3.02,194.92,194.88,2.83]
[1755446906379,3.02,194.92,194.87,2.57214949]
[1755446906580,3.05305787,194.92,194.87,2.57214949]
[1755446906883,3.02,194.91,194.9,2.83]
[1755446907084,3.02,194.91,194.87,2.57214949]
[1755446907283,3.02,194.91,194.88,2.83]
[1755446907775,3.02,194.91,194.85,2.57214949]
[1755446907974,3.02,194.9,194.86,2.83]
[1755446908175,0.03305787,194.92,194.86,2.83]
[1755446908375,3.02,194.91,194.86,2.83]
[1755446908571,0.03305787,194.92,194.86,2.83]
[1755446908877,0.03305787,194.92,194.85,2.57214949]
[1755446909075,0.03305787,194.92,194.86,2.83]
[1755446909276,3.02,194.87,194.86,2.83]
[1755446909480,3.02,194.89,194.86,2.83]
[1755446909780,3.02,194.88,194.87,2.83]
[1755446910176,3.02,194.89,194.85,2.57214949]
[1755446910376,3.02,194.89,194.88,2.83]
[1755446911580,3.02,194.89,194.85,5.40214949]
[1755446911978,3.02,194.89,194.86,2.83]
[1755446912182,3.02,194.91,194.87,2.83]
[1755446912484,3.02,194.91,194.88,2.83]
[1755446912780,3.02,194.91,194.85,2.57214949]
[1755446912984,3.02,194.91,194.87,2.83]
[1755446913375,3.02,194.91,194.86,2.83]
[1755446913570,0.03305787,194.92,194.86,2.83]
[1755446913771,0.03305787,194.92,194.83,20.95]
[1755446913772,0.03305787,194.92,194.89,2.83]
[1755446914481,0.03305787,194.92,194.91,2.57214949]
[1755446914779,0.03305787,194.92,194.91,5.40214949]
[1755446914976,3.02,194.96,194.91,5.40214949]
[1755446915284,3.02,194.99,194.95,2.83]
[1755446915584,3.02,194.97,194.96,2.83]
[1755446916381,3.02,194.96,194.95,2.83]
[1755446916882,344.6,195.0,194.95,2.83]
[1755446917083,3.02,194.97,194.94,2.57214949]
[1755446917285,3.02,194.97,194.96,2.83]
[1755446917878,3.02,194.99,194.95,2.83]
[1755446918079,3.02,195.01,194.95,2.83]
[1755446918285,3.02,195.01,194.88,2.57214949]
[1755446918286,127.36,195.06,194.97,2.57214949]
[1755446918482,3.02,195.0,194.99,2.83]
[1755446918785,3.02,195.0,194.97,5.40214949]
[1755446918980,3.02,195.05,194.97,2.57214949]
[1755446919181,3.02,195.03,194.94,2.57214949]
[1755446919377,8.25664233,195.02,194.93,2.83]
[1755446919577,3.02,195.0,194.93,2.83]
[1755446920586,3.02,195.0,194.95,2.57214949]
[1755446920885,3.02,195.05,194.96,2.83]
[1755446921186,3.02,195.03,194.96,2.83]
[1755446922087,4.59223112,195.02,194.96,2.83]
[1755446922288,3.02,195.01,194.96,2.83]
[1755446922488,3.02,195.01,194.95,2.57214949]
[1755446922688,3.02,195.01,194.97,2.83]
[1755446922884,3.02,195.01,194.95,2.57214949]
[1755446923290,3.02,195.01,194.97,2.83]
[1755446923985,3.02,195.0,194.99,2.83]
[1755446925887,3.02,195.05,194.89,2.83]
[1755446926087,3.02,195.03,194.98,2.83]
[1755446926284,127.36,195.06,194.98,2.83]
[1755446926596,3.02,195.01,194.98,2.83]
[1755446927392,3.02,195.05,194.98,2.83]
[1755446927583,8.27784204,195.04,194.98,2.83]
[1755446927788,2.74,195.02,194.98,2.83]
[1755446928195,2.74,195.04,194.98,2.83]
[1755446928593,2.74,195.04,195.0,2.57214949]
[1755446928894,130.1,195.06,195.01,2.98]
[1755446929296,2.74,195.05,195.01,2.98]
[1755446929496,127.36,195.06,195.01,2.98]
[1755446929697,2.74,195.03,195.01,2.98]
[1755446929898,2.74,195.03,195.02,2.98]
[1755446932392,2.74,195.1,195.02,2.98]
[1755446932700,2.74,195.08,195.02,2.98]
[1755446932900,2.74,195.06,195.02,2.98]
[1755446933197,2.74,195.1,195.02,2.98]
[1755446933395,2.57214949,195.03,194.87,2.98]
[1755446933596,2.74,195.01,194.91,2.98]
[1755446933799,2.74,195.01,194.8,29.98862131]
[1755446933800,2.74,194.99,194.94,2.98]
[1755446934002,2.74,194.98,194.94,2.98]
[1755446934800,5.0728307,194.97,194.94,2.98]
[1755446934999,2.74,194.97,194.96,2.98]
[1755446938102,7.81318969,194.97,194.96,2.98]
[1755446939002,5.07318969,194.97,194.96,2.98]
[1755446939703,7.81318969,194.97,194.96,2.98]
[1755446941005,5.07319915,194.97,194.96,2.98]
[1755446941204,2.74,195.04,194.97,2.98]
[1755446941410,5.07254858,195.03,194.97,2.98]
[1755446941599,5.07201943,195.02,195.0,2.98]
[1755446941801,2.74,195.06,195.0,2.98]
[1755446942101,5.07162192,195.05,195.0,2.98]
[1755446942303,5.07162192,195.04,195.01,0.03293625]
[1755446942605,2.74,195.05,195.02,2.98]
[1755446942898,2.74,195.07,195.02,2.98]
[1755446943106,5.07024148,195.06,195.02,2.98]
[1755446943302,2.74,195.07,195.02,2.98]
[1755446943502,2.74,195.1,195.03,2.98]
[1755446943798,7.80774024,195.09,195.03,2.98]
[1755446943999,2.74,195.09,195.03,2.98]
[1755446948306,2.74,195.11,195.03,2.98]
[1755446954407,2.74,195.09,195.03,2.98]
[1755446957508,7.78349195,195.08,195.03,2.98]
[1755446957809,127.5,195.12,195.03,2.98]
[1755446958008,2.89,195.07,195.03,2.98]
[1755446960809,127.5,195.12,195.03,2.98]
[1755446961016,2.89,195.09,195.06,2.87]
[1755446961315,5.04723828,195.08,195.06,2.87]
[1755446961514,2.89,195.08,195.06,2.87]
[1755446962412,2.89,195.08,195.07,2.87]
[1755446962715,7.93734356,195.08,195.07,2.87]
[1755446962919,2.89,195.11,195.07,2.87]
[1755446963113,4.99379878,195.1,195.07,2.87]
[1755446963414,2.89,195.1,195.07,2.87]
[1755446964409,4.99337562,195.09,195.07,2.87]
[1755446964613,2.89,195.1,195.07,2.87]
[1755446964817,2.89,195.17,195.09,2.87]
[1755446965016,127.22,195.18,195.09,2.87]
[1755446965017,2.89,195.15,195.09,2.87]
[1755446965219,2.89,195.13,195.09,2.87]
[1755446965619,2.89,195.13,195.12,2.87]
[1755446965920,344.5,195.22,195.12,2.87]
[1755446966122,2.89,195.2,195.15,2.87]
[1755446967725,127.22,195.24,195.03,127.22]
[1755446967726,2.89,195.19,195.17,2.57214949]
[1755446967916,127.22,195.24,195.17,2.57214949]
[1755446968118,2.89,195.2,195.19,2.87]
[1755446968720,2.89,195.2,195.17,2.57214949]
[1755446968926,2.89,195.2,195.18,2.87]
[1755446969220,2.89,195.2,195.17,2.57214949]
[1755446969425,127.22,195.24,195.18,2.87]
[1755446969628,2.89,195.19,195.18,2.87]
[1755446971117,2.89,195.21,195.18,2.87]
[1755446971519,2.89,195.2,195.18,2.87]
[1755446971815,2.57214949,195.32,195.18,2.87]
[1755446972017,2.89,195.22,195.18,2.87]
[1755446972728,2.89,195.22,195.21,2.87]
[1755446973424,2.89,195.22,195.2,2.57214949]
[1755446973631,2.89,195.29,195.2,2.57214949]
[1755446973833,2.89,195.27,195.2,5.44214949]
[1755446974931,3.73703099,195.26,195.15,2.87]
[1755446975231,2.89,195.24,195.15,2.87]
[1755446977929,4.87359424,195.23,195.15,2.87]
[1755446978128,4.87359424,195.22,195.15,2.87]
[1755446978336,7.76359424,195.21,195.17,2.57214949]
[1755446978539,2.89,195.21,195.18,2.87]
[1755446978727,2.89,195.22,195.18,2.87]
[1755446978932,4.8730027,195.21,195.18,2.87]
[1755446979132,2.89,195.22,195.18,2.87]
[1755446979337,7.7630027,195.21,195.18,2.87]
[1755446979633,2.89,195.29,195.18,2.87]
[1755446979836,2.89,195.27,195.18,2.87]
[1755446980034,2.89,195.25,195.18,2.87]
[1755446980233,127.18,195.3,195.18,2.87]
[1755446980234,4.87398272,195.24,195.18,2.87]
[1755446980425,4.87398272,195.23,195.18,2.87]
[1755446980732,4.87398272,195.22,195.18,2.87]
[1755446980939,2.89,195.2,195.19,2.87]
[1755446982441,7.74601845,195.2,195.19,2.87]
[1755446982633,2.89,195.2,195.19,2.87]
[1755446983432,7.74576991,195.2,195.19,2.87]
[1755446985942,2.89,195.2,195.19,2.87]
[1755446986139,7.75091782,195.2,195.19,2.87]
[1755446986533,7.75070062,195.2,195.19,2.87]
[1755446988038,4.86070062,195.2,195.19,2.87]
[1755446989940,7.75070062,195.2,195.19,2.87]
[1755446990138,4.86070062,195.2,195.19,2.87]
[1755446991134,7.75070062,195.2,195.19,2.87]
[1755446995142,2.89,195.2,195.19,2.87]
[1755446995338,7.75416356,195.2,195.19,2.87]
[1755446996444,2.89,195.2,195.19,2.87]
[1755447000536,3.41,195.2,195.13,15.35]
[1755447000749,2.89,195.18,195.13,15.35]
[1755447001042,5.46214949,195.16,195.13,12.32]
[1755447001248,8.56459393,195.15,195.07,2.86]
[1755447001443,4.87126771,195.14,195.07,2.86]
[1755447001649,4.87126771,195.13,195.07,2.86]
[1755447001851,4.87126771,195.12,195.07,2.86]
[1755447002049,0.03537321,195.12,195.07,2.86]
[1755447002246,0.03537321,195.12,195.08,2.86]
[1755447002847,0.03537321,195.12,195.04,2.86]
[1755447003940,4.87465364,195.11,195.04,2.86]
[1755447004139,0.03537321,195.12,195.04,2.86]
[1755447004348,4.87473483,195.11,195.04,2.86]
[1755447004546,4.87473483,195.1,195.04,2.86]
[1755447004746,0.03537321,195.12,195.04,2.86]
[1755447004939,4.87502804,195.11,195.04,2.86]
[1755447005139,4.87502804,195.1,195.04,2.86]
[1755447005343,0.03537321,195.12,195.04,2.86]
[1755447005551,4.87532444,195.11,195.04,2.86]
[1755447005852,4.87532444,195.1,195.04,2.86]
[1755447006152,0.03537321,195.12,195.04,2.86]
[1755447006453,4.87532444,195.11,195.04,2.86]
[1755447006651,4.87532444,195.1,195.04,2.86]
[1755447006858,0.03537321,195.12,195.04,2.86]
[1755447007153,4.87515364,195.11,195.04,2.86]
[1755447007345,0.03537321,195.12,195.04,2.86]
[1755447007548,4.8750678,195.11,195.04,2.86]
[1755447007743,0.03537321,195.12,195.04,2.86]
[1755447008447,0.03537321,195.12,195.07,2.86]
[1755447008954,129.65214949,195.21,195.07,2.86]
[1755447009155,0.035193,195.11,195.07,2.86]
[1755447009353,0.035193,195.11,195.1,2.86]
[1755447009548,127.08,195.21,195.1,2.86]
[1755447009750,8.56908089,195.2,195.13,2.86]
[1755447009956,8.56908089,195.19,195.13,2.86]
[1755447010153,4.87441762,195.18,195.13,2.86]
[1755447010352,4.87441762,195.17,195.13,2.86]
[1755447010651,4.87441762,195.16,195.13,2.86]
[1755447010850,0.03342552,195.18,195.13,2.86]
[1755447011046,4.86660848,195.17,195.14,2.86]
[1755447011360,4.86660848,195.16,195.09,2.57214949]
[1755447011656,4.86660848,195.15,195.09,2.57214949]
[1755447011859,8.56190349,195.14,195.09,2.86]
[1755447012057,4.86660848,195.13,195.09,2.86]
[1755447012254,4.86660848,195.17,195.09,2.86]
[1755447012454,0.03320647,195.13,195.09,2.86]
[1755447012646,4.86727146,195.12,195.09,2.86]
[1755447012852,4.86584227,195.11,195.06,2.86]
[1755447013049,0.03320647,195.13,195.06,2.86]
[1755447013254,4.86584226,195.12,195.06,2.86]
[1755447013560,4.86584226,195.11,195.04,2.86]
[1755447013856,0.03320647,195.13,195.04,2.86]
[1755447014054,4.8645774,195.12,195.04,2.86]
[1755447014256,4.8645774,195.11,195.04,2.86]
[1755447014456,0.03320647,195.13,195.04,2.86]
[1755447014652,4.86321514,195.12,195.04,2.86]
[1755447014858,4.86321514,195.11,195.04,2.86]
[1755447015151,0.03320647,195.13,195.04,2.86]
[1755447015356,4.86307812,195.12,195.04,2.86]
[1755447015563,4.86307812,195.11,195.04,2.86]
[1755447015754,0.03320647,195.13,195.04,2.86]
[1755447015955,4.86197566,195.12,195.04,2.86]
[1755447016148,4.86197566,195.11,195.04,2.86]
[1755447016352,4.86197566,195.1,195.04,2.86]
[1755447016552,0.03320647,195.13,195.04,2.86]
[1755447016751,4.86088996,195.12,195.04,2.86]
[1755447017063,0.03464573,195.1,195.04,2.86]
[1755447020664,0.03464573,195.1,195.06,3.0]
[1755447021059,346.89214949,195.19,195.06,3.0]
[1755447021264,8.54459364,195.18,195.06,3.0]
[1755447021461,0.03331124,195.1,195.06,3.0]
[1755447021662,2.57214949,195.16,195.07,3.0]
[1755447021861,8.54486562,195.15,195.03,3.0]
[1755447022066,0.03346165,195.1,195.03,3.0]
[1755447023262,0.03346165,195.1,195.06,3.0]
[1755447023666,2.57214949,195.16,195.06,3.0]
[1755447023962,8.54309135,195.15,195.06,3.0]
[1755447024170,0.03785232,195.1,195.06,3.0]
[1755447027270,0.03785232,195.1,195.05,2.57214949]
[1755447027468,0.03785232,195.1,195.07,3.0]
[1755447028470,0.03785232,195.1,195.05,2.57214949]
[1755447028770,0.03785232,195.1,195.08,3.0]
[1755447029362,4.85773951,195.09,195.08,3.0]
[1755447030877,4.85804359,195.09,195.08,3.0]
[1755447031572,0.03785232,195.1,195.08,3.0]
[1755447031872,345.21210182,195.19,195.09,3.0]
[1755447032067,4.85704827,195.18,195.13,3.0]
[1755447032372,129.67214949,195.26,195.13,3.0]
[1755447032575,0.89187319,195.24,195.13,3.0]
[1755447032776,9.82672584,195.23,195.13,3.0]
[1755447032978,0.89187319,195.24,195.13,3.0]
[1755447032979,8.54600854,195.22,195.13,3.0]
[1755447033276,8.54600854,195.21,195.13,3.0]
[1755447033574,8.54600854,195.2,195.13,3.0]
[1755447033778,8.54600854,195.19,195.13,3.0]
[1755447033969,4.85755245,195.18,195.13,3.0]
[1755447034170,4.85755245,195.17,195.13,3.0]
[1755447034373,4.85755245,195.16,195.13,3.0]
[1755447034678,4.85755245,195.15,195.1,3.0]
[1755447034874,4.85755245,195.14,195.1,3.0]
[1755447035070,2.57214949,195.23,195.1,3.0]
[1755447035270,12.47866884,195.22,195.1,3.0]
[1755447035471,12.47866884,195.21,195.1,3.0]
[1755447035676,9.83248653,195.2,195.1,3.0]
[1755447035987,8.55157369,195.19,195.1,3.0]
[1755447036180,8.55157369,195.18,195.1,3.0]
[1755447036478,8.55157369,195.17,195.1,3.0]
[1755447036677,8.55157369,195.16,195.1,3.0]
[1755447036979,8.55371079,195.15,195.1,3.0]
[1755447037170,4.86073277,195.14,195.1,3.0]
[1755447037368,4.86073277,195.13,195.1,3.0]
[1755447037571,8.30320445,195.23,195.1,3.0]
[1755447037878,12.48858893,195.22,195.1,3.0]
[1755447038076,12.48858893,195.21,195.1,3.0]
[1755447038272,9.84006752,195.2,195.1,3.0]
[1755447038471,9.84006751,195.19,195.1,3.0]
[1755447038679,8.55914197,195.18,195.1,3.0]
[1755447038882,8.55914197,195.17,195.1,3.0]
[1755447039178,8.55914197,195.16,195.1,3.0]
[1755447039483,8.55914197,195.15,195.1,3.0]
[1755447039677,4.86503586,195.14,195.1,3.0]
[1755447039982,4.86862873,195.13,195.1,3.0]
[1755447040176,4.86862873,195.12,195.1,3.0]
[1755447040481,5.73105496,195.22,195.1,3.0]
[1755447040684,18.23094728,195.21,195.1,3.0]
[1755447040886,12.49989232,195.2,195.1,3.0]
[1755447041079,12.49989232,195.19,195.1,3.0]
[1755447041280,12.50109332,195.18,195.1,3.0]
[1755447041487,12.50109332,195.17,195.1,3.0]
[1755447041672,9.84823907,195.16,195.1,3.0]
[1755447041878,8.56727303,195.15,195.1,3.0]
[1755447042177,8.56727303,195.14,195.1,3.0]
[1755447042376,4.86876162,195.13,195.1,3.0]
[1755447042578,4.86876162,195.12,195.1,3.0]
[1755447042778,5.73105496,195.21,195.1,3.0]
[1755447042980,4.98317973,195.2,195.1,3.0]
[1755447043177,9.8401607,195.19,195.1,3.0]
[1755447043374,9.8401607,195.18,195.1,3.0]
[1755447043578,8.55925917,195.17,195.1,3.0]
[1755447043879,8.55925917,195.16,195.1,3.0]
[1755447044082,8.55925917,195.15,195.1,3.0]
[1755447044282,8.55925917,195.14,195.1,3.0]
[1755447044485,4.85698097,195.13,195.1,3.0]
[1755447044680,4.85698097,195.12,195.1,3.0]
[1755447044878,4.85698097,195.11,195.1,3.0]
[1755447045091,5.73105496,195.21,195.1,3.0]
[1755447045381,12.50969654,195.2,195.1,3.0]
[1755447045582,8.57093112,195.19,195.13,3.0]
[1755447045784,8.57093112,195.18,195.13,3.0]
[1755447045987,8.57093112,195.17,195.13,3.0]